fUSD/lending_fUSD_20240517
["ID","MTS","AMOUNT","RATE_DAILY","PERIOD"]
[327311120,1715979063611,-2370.0,0.0002739,15]
[327311121,1715979063620,-2000.0,0.00027397,30]
[327311122,1715979063630,-2000.0,0.00027397,30]
[327311123,1715979063640,-2000.0,0.00027397,30]
[327311124,1715979063649,-2000.0,0.00027397,30]
[327311125,1715979063658,-2000.0,0.00027397,30]
[327311126,1715979063668,-2000.0,0.00027397,30]
[327311127,1715979063677,-2000.0,0.00027397,30]
[327311128,1715979063688,-2000.0,0.00027397,30]
[327311129,1715979063697,-2000.0,0.00027397,30]
[327311130,1715979063706,-2000.0,0.00027397,30]
[327311131,1715979063715,-2000.0,0.00027397,30]
[327311132,1715979063724,-2000.0,0.00027397,30]
[327311133,1715979063734,-1274.20480393,0.00027397,30]
[327311134,1715979063743,-300.0,0.00027397,2]
[327311135,1715979063753,-600.0,0.00027397,2]
[327311136,1715979063762,-600.0,0.00027397,4]
[327311137,1715979063771,-600.0,0.00027397,6]
[327311138,1715979063780,-479.98,0.00027397,8]
[327311139,1715979063790,-1500.0,0.00027397,2]
[327311140,1715979063799,-1500.0,0.00027397,2]
[327311141,1715979063809,-1500.0,0.00027397,2]
[327311142,1715979063818,-1500.0,0.00027397,2]
[327311143,1715979063828,-279.17500831,0.00027397,2]
[327311144,1715979063838,-1019.3947766,0.00027397,2]
[327311145,1715979063847,-200.0,0.00027397,7]
[327311146,1715979063857,-1431.495217,0.00027397,2]
[327311147,1715979063866,-483.05229021,0.00027397,30]
[327311148,1715979063875,-170.97001758,0.00027397,30]
[327311149,1715979063885,-752.2680774,0.00027397,30]
[327311150,1715979063894,-6672.730215,0.00027397,3]
[327311151,1715979063904,-150.0,0.00027397,2]
[327311152,1715979063914,-80044.22,0.00027397,2]
[327311153,1715979063923,-481.56,0.00027397,2]
[327311154,1715979063933,-7992.66,0.00027397,15]
[327311155,1715979063942,-3305.16121583,0.00027397,2]
[327311156,1715979063954,-3940.47964354,0.00027397,2]
[327311157,1715979063966,-8571.76914063,0.00027397,2]
[327311158,1715979063975,-6817.1,0.00027397,10]
[327311159,1715979063985,-650.0,0.000274,2]
[327311160,1715979063995,-2000.0,0.000274,2]
[327311161,1715979064004,-500.0,0.000274,2]
[327311162,1715979064014,-1200.0,0.000274,2]
[327311163,1715979064023,-249.62354357,0.000274,2]
[327311164,1715979064033,-200.0,0.000274,2]
[327311165,1715979064042,-172.50009756,0.000274,2]
[327311166,1715979064056,-168.86931696,0.000274,2]
[327311167,1715979064065,-157.19252785,0.000274,2]
[327311168,1715979064076,-842.80747215,0.000274,2]
[327311169,1715979064086,-1916.69301765,0.00027499,2]
[327311170,1715979064097,-65916.16140435,0.00027499,2]
[327311171,1715979064107,-188.74834044,0.000275,2]
[327311172,1715979064116,-13026.20181358,0.000275,30]
[327311173,1715979064128,-2245.5336603,0.000275,30]
[327311174,1715979064140,-13392.79731057,0.000275,30]
[327311175,1715979064151,-593.0189807,0.000275,30]
[327311176,1715979064162,-543.04074503,0.000275,30]
[327311177,1715979064173,-636.87818,0.000275,30]
[327311178,1715979064185,-15868.62147938,0.000275,30]
[327311179,1715979064196,-27194.00652977,0.000275,30]
[327311180,1715979064205,-664.0,0.000275,16]
[327311181,1715979064215,-299.66126699,0.000275,10]
[327311182,1715979064224,-558.931211,0.000275,2]
[327311183,1715979064234,-150.0,0.000275,5]
[327311184,1715979064243,-150.0,0.000275,5]
[327311185,1715979064253,-150.0,0.000275,5]
[327311186,1715979064262,-483.05229021,0.00027507,30]
[327311187,1715979064272,-752.2680774,0.00027507,30]
[327311188,1715979064281,-1074.0,0.0002751,2]
[327311189,1715979064290,-1004.96,0.0002752,2]
[327311190,1715979064299,-1000.0,0.00027548,30]
[327311191,1715979064311,-150.0,0.00027583,120]
[327311192,1715979064320,-483.05229021,0.00027616,30]
[327311193,1715979064329,-752.2680774,0.00027616,30]
[327311194,1715979064338,-150.0,0.00027624,120]
[327311195,1715979064348,-500.0,0.00027671,4]
[327311196,1715979064357,-150.0,0.00027681,120]
[327311197,1715979064366,-150.0,0.00027682,2]
[327311198,1715979064375,-150.0,0.00027682,2]
[327311199,1715979064384,-150.0,0.00027682,2]
[327311200,1715979064394,-150.0,0.00027694,120]
[327311201,1715979064403,-9313.01974172,0.000277,2]
[327311202,1715979064412,-339.22,0.00027722,2]
[327311203,1715979064421,-170.97001758,0.00027726,30]
[327311204,1715979064430,-152.0,0.00027732,13]
[327311205,1715979064440,-156.84401569,0.00027734,2]
[327311206,1715979064450,-483.05229021,0.00027753,30]
[327311207,1715979064459,-752.2680774,0.00027753,30]
[327311208,1715979064468,-174.14011094,0.00027763,2]
[327311209,1715979064478,-8349.08323413,0.00027763,2]
[327311210,1715979064487,-6321.4189528,0.00027763,2]
[327311211,1715979064497,-25113.46799601,0.00027763,2]
[327311212,1715979064506,-6051.24166909,0.00027763,2]
[327311213,1715979064520,-561.78122799,0.00027763,2]
[327311214,1715979064530,-3087.17016428,0.00027763,7]
[327311215,1715979064539,-3087.17016428,0.00027763,7]
[327311216,1715979064548,-3087.17016428,0.00027763,7]
[327311217,1715979064559,-3087.17016428,0.00027763,7]
[327311218,1715979064568,-3087.17016428,0.00027763,7]
[327311219,1715979064577,-3087.17016428,0.00027763,7]
[327311220,1715979064586,-3087.17016428,0.00027763,7]
[327311221,1715979064596,-3087.17016428,0.00027763,7]
[327311222,1715979064607,-3087.17016428,0.00027763,7]
[327311223,1715979064616,-3087.17016428,0.00027763,7]
[327311224,1715979064626,-3087.17016428,0.00027763,7]
[327311225,1715979064635,-3087.17016428,0.00027763,7]
[327311226,1715979064644,-3087.17016428,0.00027763,7]
[327311227,1715979064653,-3087.17016428,0.00027763,7]
[327311228,1715979064663,-3087.17016428,0.00027763,7]
[327311229,1715979064673,-3087.17016428,0.00027763,7]
[327311230,1715979064683,-3087.17016428,0.00027763,7]
[327311231,1715979064693,-3087.17016428,0.00027763,7]
[327311232,1715979064702,-3087.17016428,0.00027763,7]
[327311233,1715979064712,-3087.67,0.00027763,7]
[327311234,1715979064721,-909.62184524,0.00027763,7]
[327311235,1715979064730,-909.62184524,0.00027763,7]
[327311236,1715979064739,-909.62184524,0.00027763,7]
[327311237,1715979064748,-909.62184524,0.00027763,7]
[327311238,1715979064758,-909.62184524,0.00027763,7]
[327311239,1715979064768,-909.62184524,0.00027763,7]
[327311240,1715979064777,-909.62184524,0.00027763,7]
[327311241,1715979064787,-909.62184524,0.00027763,7]
[327311242,1715979064796,-909.62184524,0.00027763,7]
[327311243,1715979064807,-909.62184524,0.00027763,7]
[327311244,1715979064816,-909.62184524,0.00027763,7]
[327311245,1715979064825,-909.62184524,0.00027763,7]
[327311246,1715979064835,-909.62184524,0.00027763,7]
[327311247,1715979064845,-909.62184524,0.00027763,7]
[327311248,1715979064854,-909.62184524,0.00027763,7]
[327311249,1715979064864,-909.62184524,0.00027763,7]
[327311250,1715979064874,-909.62184524,0.00027763,7]
[327311251,1715979064883,-909.62184524,0.00027763,7]
[327311252,1715979064892,-909.62184524,0.00027763,7]
[327311253,1715979064902,-910.12,0.00027763,7]
[327311254,1715979064911,-272.51310679,0.00027763,7]
[327311255,1715979064921,-272.51310679,0.00027763,7]
[327311256,1715979064931,-272.51310679,0.00027763,7]
[327311257,1715979064940,-272.51310679,0.00027763,7]
[327311258,1715979064949,-272.51310679,0.00027763,7]
[327311259,1715979064958,-272.51310679,0.00027763,7]
[327311260,1715979064968,-272.51310679,0.00027763,7]
[327311261,1715979064976,-272.51310679,0.00027763,7]
[327311262,1715979064985,-272.51310679,0.00027763,7]
[327311263,1715979064995,-272.51310679,0.00027763,7]
[327311264,1715979065004,-272.51310679,0.00027763,7]
[327311265,1715979065014,-272.51310679,0.00027763,7]
[327311266,1715979065023,-272.51310679,0.00027763,7]
[327311267,1715979065032,-272.51310679,0.00027763,7]
[327311268,1715979065041,-272.51310679,0.00027763,7]
[327311269,1715979065051,-272.51310679,0.00027763,7]
[327311270,1715979065062,-272.51310679,0.00027763,7]
[327311271,1715979065071,-272.51310679,0.00027763,7]
[327311272,1715979065080,-272.51310679,0.00027763,7]
[327311273,1715979065090,-273.01,0.00027763,7]
[327311274,1715979065099,-964.25362206,0.00027763,7]
[327311275,1715979065109,-964.25362206,0.00027763,7]
[327311276,1715979065118,-964.25362206,0.00027763,7]
[327311277,1715979065127,-964.25362206,0.00027763,7]
[327311278,1715979065136,-964.25362206,0.00027763,7]
[327311279,1715979065146,-964.25362206,0.00027763,7]
[327311280,1715979065155,-964.25362206,0.00027763,7]
[327311281,1715979065164,-964.25362206,0.00027763,7]
[327311282,1715979065173,-964.25362206,0.00027763,7]
[327311283,1715979065183,-964.25362206,0.00027763,7]
[327311284,1715979065192,-964.25362206,0.00027763,7]
[327311285,1715979065202,-964.25362206,0.00027763,7]
[327311286,1715979065211,-964.25362206,0.00027763,7]
[327311287,1715979065220,-964.25362206,0.00027763,7]
[327311288,1715979065229,-964.25362206,0.00027763,7]
[327311289,1715979065239,-964.25362206,0.00027763,7]
[327311290,1715979065248,-964.25362206,0.00027763,7]
[327311291,1715979065258,-964.25362206,0.00027763,7]
[327311292,1715979065268,-964.25362206,0.00027763,7]
[327311293,1715979065277,-964.75,0.00027763,7]
[327311294,1715979065287,-7309.934563,0.00027763,7]
[327311295,1715979065296,-2737.293285,0.00027763,7]
[327311296,1715979065305,-1395.183117,0.00027763,7]
[327311297,1715979065315,-150.0,0.00027807,10]
[327311298,1715979065324,-150.0,0.00027807,10]
[327311299,1715979065334,-150.0,0.00027807,10]
[327311300,1715979065343,-150.0,0.00027807,10]
[327311301,1715979065353,-150.0,0.00027807,10]
[327311302,1715979065362,-150.0,0.00027807,10]
[327311303,1715979065372,-150.0,0.00027807,10]
[327311304,1715979065382,-150.0,0.00027807,10]
[327311305,1715979065391,-150.0,0.00027807,10]
[327311306,1715979065401,-150.0,0.00027807,10]
[327311307,1715979065410,-150.0,0.00027807,10]
[327311308,1715979065420,-150.0,0.00027807,10]
[327311309,1715979065429,-150.0,0.00027807,10]
[327311310,1715979065439,-150.0,0.00027807,10]
[327311311,1715979065448,-150.0,0.00027807,10]
[327311312,1715979065459,-150.0,0.00027807,10]
[327311313,1715979065468,-150.0,0.00027807,10]
[327311314,1715979065478,-150.0,0.00027807,10]
[327311315,1715979065487,-150.0,0.00027807,10]
[327311316,1715979065496,-150.0,0.00027807,10]
[327311317,1715979065505,-150.0,0.00027807,10]
[327311318,1715979065518,-150.0,0.00027807,10]
[327311319,1715979065527,-150.0,0.00027807,10]
[327311320,1715979065536,-150.0,0.00027807,10]
[327311321,1715979065545,-150.0,0.00027807,10]
[327311322,1715979065558,-150.0,0.00027807,10]
[327311323,1715979065567,-150.0,0.00027807,10]
[327311324,1715979065577,-150.0,0.00027807,10]
[327311325,1715979065587,-150.0,0.00027807,10]
[327311326,1715979065596,-150.0,0.00027807,10]
[327311327,1715979065606,-150.0,0.00027807,10]
[327311328,1715979065615,-150.0,0.00027807,10]
[327311329,1715979065625,-150.0,0.00027807,10]
[327311330,1715979065634,-150.0,0.00027807,10]
[327311331,1715979065643,-150.0,0.00027807,10]
[327311332,1715979065652,-150.0,0.00027807,10]
[327311333,1715979065662,-150.0,0.00027807,10]
[327311334,1715979065671,-150.0,0.00027807,10]
[327311335,1715979065680,-150.0,0.00027807,10]
[327311336,1715979065690,-150.0,0.00027807,10]
[327311337,1715979065699,-150.0,0.00027807,10]
[327311338,1715979065709,-150.0,0.00027807,10]
[327311339,1715979065718,-150.0,0.00027807,10]
[327311340,1715979065728,-150.0,0.00027807,10]
[327311341,1715979065737,-150.0,0.00027807,10]
[327311342,1715979065747,-150.0,0.00027807,10]
[327311343,1715979065756,-150.0,0.00027807,10]
[327311344,1715979065765,-150.0,0.00027807,10]
[327311345,1715979065775,-150.0,0.00027807,10]
[327311346,1715979065785,-150.0,0.00027807,10]
[327311347,1715979065794,-150.0,0.00027807,10]
[327311348,1715979065803,-150.0,0.00027807,10]
[327311349,1715979065812,-150.0,0.00027807,10]
[327311350,1715979065821,-150.0,0.00027807,10]
[327311351,1715979065830,-150.0,0.00027807,10]
[327311352,1715979065839,-150.0,0.00027807,10]
[327311353,1715979065848,-150.0,0.00027807,10]
[327311354,1715979065857,-150.0,0.00027807,10]
[327311355,1715979065866,-150.0,0.00027807,10]
[327311356,1715979065875,-150.0,0.00027807,10]
[327311357,1715979065884,-150.0,0.00027807,10]
[327311358,1715979065893,-260.40623362,0.00027807,10]
[327311359,1715979065902,-150.0,0.00027807,10]
[327311360,1715979065912,-150.0,0.00027807,10]
[327311361,1715979065922,-15734.47523368,0.00027807,6]
[327311362,1715979065931,-150.0,0.00027817,120]
[327311363,1715979065940,-21000.71245061,0.00027842,2]
[327311364,1715979065949,-423.003046,0.00027842,7]
[327311365,1715979065958,-423.003046,0.00027842,7]
[327311366,1715979065967,-166.5687145,0.00027844,2]
[327311367,1715979065977,-166.5687145,0.00027844,2]
[327311368,1715979065986,-740.3720507,0.00027844,2]
[327311369,1715979065995,-925.4956052,0.00027844,2]
[327311370,1715979066004,-17101.9117566,0.00027844,2]
[327311371,1715979066014,-21378.0951814,0.00027844,2]
[327311372,1715979066023,-2859.4135388,0.00027844,2]
[327311373,1715979066033,-3574.3848797,0.00027844,2]
[327311374,1715979066042,-1999.999999,0.00027848,10]
[327311375,1715979066051,-481.44,0.00027862,2]
[327311376,1715979066061,-423.003046,0.00027863,7]
[327311377,1715979066071,-423.003046,0.00027863,7]
[327311378,1715979066082,-423.003046,0.00027863,7]
[327311379,1715979066091,-423.003046,0.00027863,7]
[327311380,1715979066100,-423.003046,0.00027863,7]
[327311381,1715979066109,-423.003046,0.00027863,7]
[327311382,1715979066118,-423.003046,0.00027863,7]
[327311383,1715979066127,-423.003045,0.00027863,7]
[327311384,1715979066136,-575.928155,0.00027863,7]
[327311385,1715979066145,-575.928155,0.00027863,7]
[327311386,1715979066155,-575.928155,0.00027863,7]
[327311387,1715979066164,-575.928155,0.00027863,7]
[327311388,1715979066173,-575.928155,0.00027863,7]
[327311389,1715979066182,-575.928155,0.00027863,7]
[327311390,1715979066191,-575.928155,0.00027863,7]
[327311391,1715979066201,-575.928155,0.00027863,7]
[327311392,1715979066211,-186.807051,0.00027863,7]
[327311393,1715979066220,-575.928155,0.00027863,7]
[327311394,1715979066229,-186.807051,0.00027863,7]
[327311395,1715979066238,-575.928146,0.00027863,7]
[327311396,1715979066247,-186.807051,0.00027863,7]
[327311397,1715979066256,-186.807051,0.00027863,7]
[327311398,1715979066265,-186.807051,0.00027863,7]
[327311399,1715979066275,-186.807051,0.00027863,7]
[327311400,1715979066284,-186.807051,0.00027863,7]
[327311401,1715979066293,-186.807051,0.00027863,7]
[327311402,1715979066302,-186.807051,0.00027863,7]
[327311403,1715979066312,-186.807057,0.00027863,7]
[327311404,1715979066322,-151.0,0.00027863,7]
[327311405,1715979066331,-297.779352,0.00027863,7]
[327311406,1715979066340,-317.92,0.00027863,7]
[327311407,1715979066349,-317.92,0.00027863,7]
[327311408,1715979066359,-317.92,0.00027863,7]
[327311409,1715979066368,-317.92,0.00027863,7]
[327311410,1715979066377,-317.92,0.00027863,7]
[327311411,1715979066386,-317.92,0.00027863,7]
[327311412,1715979066395,-317.92,0.00027863,7]
[327311413,1715979066404,-317.92,0.00027863,7]
[327311414,1715979066413,-317.92,0.00027863,7]
[327311415,1715979066422,-317.92,0.00027863,7]
[327311416,1715979066431,-157.698281,0.00027863,7]
[327311417,1715979066440,-157.698281,0.00027863,7]
[327311418,1715979066449,-157.698281,0.00027863,7]
[327311419,1715979066458,-157.698281,0.00027863,7]
[327311420,1715979066467,-157.698281,0.00027863,7]
[327311421,1715979066476,-157.698281,0.00027863,7]
[327311422,1715979066485,-157.698281,0.00027863,7]
[327311423,1715979066494,-157.698281,0.00027863,7]
[327311424,1715979066503,-157.698281,0.00027863,7]
[327311425,1715979066517,-157.698285,0.00027863,7]
[327311426,1715979066525,-151.0,0.00027863,7]
[327311427,1715979066535,-255.967412,0.00027863,7]
[327311428,1715979066544,-151.0,0.00027863,7]
[327311429,1715979066554,-151.0,0.00027863,7]
[327311430,1715979066564,-293.60579,0.00027863,7]
[327311431,1715979066573,-225.015646,0.00027863,7]
[327311432,1715979066582,-225.015646,0.00027863,7]
[327311433,1715979066593,-225.015646,0.00027863,7]
[327311434,1715979066603,-225.015646,0.00027863,7]
[327311435,1715979066613,-225.015646,0.00027863,7]
[327311436,1715979066622,-225.015646,0.00027863,7]
[327311437,1715979066631,-225.015646,0.00027863,7]
[327311438,1715979066640,-225.015646,0.00027863,7]
[327311439,1715979066649,-225.015646,0.00027863,7]
[327311440,1715979066658,-225.015637,0.00027863,7]
[327311441,1715979066667,-215.11117,0.00027863,7]
[327311442,1715979066676,-483.385401,0.00027863,7]
[327311443,1715979066686,-483.385401,0.00027863,7]
[327311444,1715979066695,-483.385401,0.00027863,7]
[327311445,1715979066704,-483.385401,0.00027863,7]
[327311446,1715979066852,-356.842198,0.00027863,7]
[327311447,1715979066862,-356.842198,0.00027863,7]
[327311448,1715979066871,-356.842198,0.00027863,7]
[327311449,1715979066880,-356.842198,0.00027863,7]
[327311450,1715979066889,-483.385401,0.00027863,7]
[327311451,1715979066899,-483.385401,0.00027863,7]
[327311452,1715979066908,-483.385401,0.00027863,7]
[327311453,1715979066916,-483.385405,0.00027863,7]
[327311454,1715979066925,-356.842198,0.00027863,7]
[327311455,1715979066935,-356.842198,0.00027863,7]
[327311456,1715979066944,-356.842198,0.00027863,7]
[327311457,1715979066953,-356.842193,0.00027863,7]
[327311458,1715979066962,-233.454521,0.00027863,7]
[327311459,1715979066971,-233.454521,0.00027863,7]
[327311460,1715979066980,-233.454521,0.00027863,7]
[327311461,1715979066989,-233.454521,0.00027863,7]
[327311462,1715979066999,-233.454521,0.00027863,7]
[327311463,1715979067007,-233.454521,0.00027863,7]
[327311464,1715979067016,-233.454521,0.00027863,7]
[327311465,1715979067025,-233.454527,0.00027863,7]
[327311466,1715979067034,-482.399709,0.00027863,7]
[327311467,1715979067042,-482.399709,0.00027863,7]
[327311468,1715979067051,-482.399709,0.00027863,7]
[327311469,1715979067061,-482.399709,0.00027863,7]
[327311470,1715979067070,-482.399709,0.00027863,7]
[327311471,1715979067079,-482.399709,0.00027863,7]
[327311472,1715979067089,-482.399709,0.00027863,7]
[327311473,1715979067098,-482.399709,0.00027863,7]
[327311474,1715979067109,-482.399709,0.00027863,7]
[327311475,1715979067118,-482.399714,0.00027863,7]
[327311476,1715979067128,-151.0,0.00027863,7]
[327311477,1715979067136,-151.0,0.00027863,7]
[327311478,1715979067145,-151.0,0.00027863,7]
[327311479,1715979067154,-151.0,0.00027863,7]
[327311480,1715979067163,-151.0,0.00027863,7]
[327311481,1715979067172,-1640.864301,0.00027863,7]
[327311482,1715979067181,-1640.864301,0.00027863,7]
[327311483,1715979067191,-1640.864301,0.00027863,7]
[327311484,1715979067201,-1640.864301,0.00027863,7]
[327311485,1715979067211,-1640.864301,0.00027863,7]
[327311486,1715979067221,-1640.864301,0.00027863,7]
[327311487,1715979067230,-151.0,0.00027863,7]
[327311488,1715979067240,-1640.864301,0.00027863,7]
[327311489,1715979067250,-151.0,0.00027863,7]
[327311490,1715979067259,-1640.864301,0.00027863,7]
[327311491,1715979067268,-151.0,0.00027863,7]
[327311492,1715979067278,-1640.864301,0.00027863,7]
[327311493,1715979067290,-151.0,0.00027863,7]
[327311494,1715979067321,-1640.864299,0.00027863,7]
[327311495,1715979067362,-151.0,0.00027863,7]
[327311496,1715979067399,-151.0,0.00027863,7]
[327311497,1715979067437,-151.0,0.00027863,7]
[327311498,1715979067457,-151.0,0.00027863,7]
[327311499,1715979067467,-151.0,0.00027863,7]
[327311500,1715979067476,-151.0,0.00027863,7]
[327311501,1715979067486,-151.0,0.00027863,7]
[327311502,1715979067495,-151.0,0.00027863,7]
[327311503,1715979067506,-151.0,0.00027863,7]
[327311504,1715979067520,-151.0,0.00027863,7]
[327311505,1715979067529,-151.0,0.00027863,7]
[327311506,1715979067538,-181.756006,0.00027863,7]
[327311507,1715979067548,-267.884656,0.00027863,7]
[327311508,1715979067559,-151.0,0.00027863,7]
[327311509,1715979067568,-151.0,0.00027863,7]
[327311510,1715979067577,-151.0,0.00027863,7]
[327311511,1715979067586,-151.0,0.00027863,7]
[327311512,1715979067599,-151.0,0.00027863,7]
[327311513,1715979067609,-297.345496,0.00027863,7]
[327311514,1715979067618,-151.0,0.00027863,7]
[327311515,1715979067627,-151.0,0.00027863,7]
[327311516,1715979067637,-151.0,0.00027863,7]
[327311517,1715979067646,-151.0,0.00027863,7]
[327311518,1715979067655,-151.0,0.00027863,7]
[327311519,1715979067664,-151.0,0.00027863,7]
[327311520,1715979067673,-151.0,0.00027863,7]
[327311521,1715979067683,-151.0,0.00027863,7]
[327311522,1715979067692,-151.0,0.00027863,7]
[327311523,1715979067701,-151.0,0.00027863,7]
[327311524,1715979067710,-151.0,0.00027863,7]
[327311525,1715979067720,-151.0,0.00027863,7]
[327311526,1715979067729,-260.693421,0.00027863,7]
[327311527,1715979067738,-151.0,0.00027863,7]
[327311528,1715979067747,-151.0,0.00027863,7]
[327311529,1715979067756,-151.0,0.00027863,7]
[327311530,1715979067765,-151.0,0.00027863,7]
[327311531,1715979067774,-204.348976,0.00027863,7]
[327311532,1715979067783,-483.05229021,0.00027863,30]
[327311533,1715979067792,-752.2680774,0.00027863,30]
[327311534,1715979067802,-2035.91210102,0.00027863,2]
[327311535,1715979067812,-4240.65012328,0.00027863,2]
[327311536,1715979067821,-579.93873647,0.00027863,15]
[327311537,1715979067830,-579.93873647,0.00027863,20]
[327311538,1715979067839,-289.96936824,0.00027863,25]
[327311539,1715979067848,-289.96936823,0.00027863,30]
[327311540,1715979067858,-130235.95596278,0.00027863,2]
[327311541,1715979067868,-17707.1757699,0.00027863,5]
[327311542,1715979067877,-168651.85069427,0.00027863,2]
[327311543,1715979067887,-118978.75886318,0.00027863,2]
[327311544,1715979067896,-1210.0,0.00027863,2]
[327311545,1715979067905,-3362.87290188,0.00027863,2]
[327311546,1715979067914,-339.54638805,0.00027863,2]
[327311547,1715979067923,-2930.2469019,0.00027863,2]
[327311548,1715979067933,-4691.75534133,0.00027863,2]
[327311549,1715979067941,-222.30755892,0.00027863,2]
[327311550,1715979067950,-1482.16908056,0.00027863,2]
[327311551,1715979067960,-7188.20412284,0.00027863,2]
[327311552,1715979067969,-1004.0016874,0.00027863,2]
[327311553,1715979067978,-10425.41424338,0.00027863,2]
[327311554,1715979067987,-5053.69786007,0.00027863,2]
[327311555,1715979067995,-2664.21320944,0.00027863,2]
[327311556,1715979068004,-2391.93691523,0.00027863,2]
[327311557,1715979068013,-5465.41927891,0.00027863,2]
[327311558,1715979068022,-2609.61777671,0.00027863,2]
[327311559,1715979068031,-31947.55069701,0.00027863,2]
[327311560,1715979068048,-6140.91867397,0.00027863,2]
[327311561,1715979068060,-3959.850002,0.00027863,2]
[327311562,1715979068071,-1317.11589943,0.00027863,2]
[327311563,1715979068082,-537.16417105,0.00027863,2]
[327311564,1715979068093,-11451.47465665,0.00027863,2]
[327311565,1715979068154,-200.09244768,0.00012327,2]
[327311566,1715979068164,-200.0,0.000128,4]
[327311567,1715979068173,-155.0,0.00013698,2]
[327311568,1715979068182,-408.86277335,0.00013698,2]
[327311569,1715979068191,-194.981403,0.000199,2]
[327311570,1715979068199,-75.2460393,0.00027863,2]
[327311571,1715979068211,-1934.15722085,0.00027863,2]
[327311572,1715979068223,-29088.65883956,0.00027863,2]
[327311573,1715979068233,-435.51783546,0.00027863,2]
[327311574,1715979068244,-5852.69943588,0.00027863,2]
[327311575,1715979068255,-4803.45941549,0.00027863,2]
[327311576,1715979068266,-2593.47439601,0.00027863,2]
[327311577,1715979068278,-13561.47766172,0.00027863,2]
[327311578,1715979068289,-20131.36788428,0.00027863,2]
[327311579,1715979068298,-3165.18108028,0.00027863,2]
[327311580,1715979068308,-159.89948042,0.00027863,2]
[327311581,1715979068317,-22216.76114634,0.00027863,2]
[327311582,1715979068325,-1647.20294989,0.00027863,2]
[327311583,1715979068336,-576.80532232,0.00027863,2]
[327311584,1715979068348,-12519.31908622,0.00027863,2]
[327311585,1715979068357,-1041.75362825,0.00027863,2]
[327311586,1715979068366,-5817.81026139,0.00027863,2]
[327311587,1715979068375,-176.18920546,0.00027863,2]
[327311588,1715979068384,-848.06661703,0.00027863,2]
[327311589,1715979068394,-1019.0517166,0.00027863,2]
[327311590,1715979068403,-186.14730264,0.00027863,2]
[327311591,1715979068412,-8999.83768642,0.00027863,2]
[327311592,1715979068421,-1277.80303545,0.00027863,2]
[327311593,1715979068430,-4817.46836681,0.00027863,2]
[327311594,1715979068439,-480.36879522,0.00027863,2]
[327311595,1715979068448,-12511.33601153,0.00027863,2]
[327311596,1715979068457,-1873.25841784,0.00027863,2]
[327311597,1715979068466,-5445.21575054,0.00027863,2]
[327311598,1715979068475,-643.0,0.00027863,2]
[327311599,1715979068484,-946.25658446,0.00027863,2]
[327311600,1715979068493,-8072.9971918,0.00027863,2]
[327311601,1715979068503,-558.91074053,0.00027863,2]
[327311602,1715979068514,-1791.82141755,0.00027863,2]
[327311603,1715979068524,-16329.76427044,0.00027863,2]
[327311604,1715979068533,-170.3111485,0.00027863,2]
[327311605,1715979068542,-34799.58829827,0.00027863,2]
[327311606,1715979068551,-550.0,0.00027863,2]
[327311607,1715979068563,-983.36233894,0.00027863,2]
[327311608,1715979068572,-10442.68094146,0.00027863,2]
[327311609,1715979068580,-165306.99655121,0.00027863,2]
[327311610,1715979068590,-14580.53885356,0.00027863,2]
[327311611,1715979068599,-6000.0,0.00027863,2]
[327311612,1715979068609,-1008.07088234,0.00027863,2]
[327311613,1715979068618,-10350.85410745,0.00027863,2]
[327311614,1715979068628,-14274.7830806,0.00027863,2]
[327311615,1715979068637,-549.45552668,0.00027863,2]
[327311616,1715979068646,-150.0,0.00027863,2]
[327311617,1715979068655,-637.19660243,0.00027863,2]
[327311618,1715979068663,-611.2062736,0.00027863,2]
[327311619,1715979068672,-209.57430041,0.00027863,2]